[Event "December 12 Early 2023"]
[Site "https://www.chess.com"]
[Date "2023.12.12"]
[Round "10"]
[White "Principe, Gerson"]
[Black "Haug, Havard"]
[Result "0-1"]
[Board "29"]
[TimeControl "180+1"]
[WhiteFideId "3804550"]
[BlackFideId "1547887"]
[WhiteElo "2633"]
[BlackElo "2761"]
[WhiteTeam "PER"]
[BlackTeam "NOR"]
[WhiteClock "0:00:03"]
[BlackClock "0:00:09"]

1. d4 {[%clk 0:03:00]}  d5 {[%clk 0:02:59]} 2. Nf3 {[%clk 0:03:00]}  e6 {[%clk 0:02:58]} 3. c4 {[%clk 0:02:59]}  c5 {[%clk 0:02:58]} 4. cxd5 {[%clk 0:02:58]}  exd5 {[%clk 0:02:59]} 5. Nc3 {[%clk 0:02:59]}  Nf6 {[%clk 0:03:00]} 6. e3 {[%clk 0:02:54]}  c4 {[%clk 0:02:58]} 7. Ne5 {[%clk 0:02:49]}  Be6 {[%clk 0:02:55]} 8. Be2 {[%clk 0:02:43]}  Nbd7 {[%clk 0:02:52]} 9. f4 {[%clk 0:02:43]}  g6 {[%clk 0:02:51]} 10. O-O {[%clk 0:02:43]}  h5 {[%clk 0:02:50]} 11. Bf3 {[%clk 0:02:39]}  Bg7 {[%clk 0:02:49]} 12. e4 {[%clk 0:02:40]}  dxe4 {[%clk 0:02:46]} 13. Nxe4 {[%clk 0:02:41]}  O-O {[%clk 0:02:40]} 14. Ng5 {[%clk 0:02:34]}  Bd5 {[%clk 0:02:39]} 15. Be3 {[%clk 0:02:27]}  b5 {[%clk 0:02:37]} 16. f5 {[%clk 0:02:18]}  Bxf3 {[%clk 0:01:49]} 17. Qxf3 {[%clk 0:02:15]}  Nxe5 {[%clk 0:01:47]} 18. dxe5 {[%clk 0:02:14]}  Nh7 {[%clk 0:01:47]} 19. f6 {[%clk 0:01:48]}  Nxg5 {[%clk 0:01:41]} 20. Bxg5 {[%clk 0:01:46]}  Bh8 {[%clk 0:01:41]} 21. e6 {[%clk 0:01:42]}  Qb6+ {[%clk 0:01:40]} 22. Kh1 {[%clk 0:01:39]}  Qxe6 {[%clk 0:01:39]} 23. Rae1 {[%clk 0:01:40]}  Qa6 {[%clk 0:01:35]} 24. a3 {[%clk 0:01:35]}  Rad8 {[%clk 0:01:31]} 25. Re7 {[%clk 0:01:30]}  Rd3 {[%clk 0:01:29]} 26. Qf4 {[%clk 0:01:23]}  Qc6 {[%clk 0:01:07]} 27. Bh6 {[%clk 0:01:05]}  Qxf6 {[%clk 0:00:51]} 28. Qxf6 {[%clk 0:00:58]}  Bxf6 {[%clk 0:00:52]} 29. Bxf8 {[%clk 0:00:59]}  Kxf8 {[%clk 0:00:50]} 30. Rxa7 {[%clk 0:00:53]}  Kg7 {[%clk 0:00:42]} 31. g3 {[%clk 0:00:46]}  Rd2 {[%clk 0:00:37]} 32. a4 {[%clk 0:00:20]}  b4 {[%clk 0:00:32]} 33. Rc7 {[%clk 0:00:21]}  c3 {[%clk 0:00:20]} 34. bxc3 {[%clk 0:00:20]}  bxc3 {[%clk 0:00:21]} 35. Rc1 {[%clk 0:00:18]}  Ra2 {[%clk 0:00:19]} 36. Rc4 {[%clk 0:00:17]}  Be5 {[%clk 0:00:17]} 37. R4xc3 {[%clk 0:00:11]}  Bxc3 {[%clk 0:00:16]} 38. Rxc3 {[%clk 0:00:12]}  Rxa4 {[%clk 0:00:17]} 39. Kg2 {[%clk 0:00:12]}  h4 {[%clk 0:00:17]} 40. gxh4 {[%clk 0:00:12]}  Rxh4 {[%clk 0:00:17]} 41. Rc7 {[%clk 0:00:12]}  Re4 {[%clk 0:00:17]} 42. Kg3 {[%clk 0:00:13]}  Ra4 {[%clk 0:00:17]} 43. Rb7 {[%clk 0:00:13]}  Ra3+ {[%clk 0:00:17]} 44. Kg4 {[%clk 0:00:13]}  Ra4+ {[%clk 0:00:18]} 45. Kg3 {[%clk 0:00:14]}  Ra3+ {[%clk 0:00:19]} 46. Kg4 {[%clk 0:00:14]}  Rd3 {[%clk 0:00:19]} 47. Ra7 {[%clk 0:00:12]}  Rd4+ {[%clk 0:00:19]} 48. Kg3 {[%clk 0:00:12]}  Rd5 {[%clk 0:00:19]} 49. Rb7 {[%clk 0:00:12]}  Rf5 {[%clk 0:00:19]} 50. Ra7 {[%clk 0:00:13]}  Kh6 {[%clk 0:00:20]} 51. Ra4 {[%clk 0:00:11]}  Rf1 {[%clk 0:00:19]} 52. Ra5 {[%clk 0:00:10]}  f5 {[%clk 0:00:19]} 53. Ra8 {[%clk 0:00:08]}  Rb1 {[%clk 0:00:19]} 54. Rh8+ {[%clk 0:00:07]}  Kg7 {[%clk 0:00:15]} 55. Ra8 {[%clk 0:00:07]}  Rb3+ {[%clk 0:00:15]} 56. Kg2 {[%clk 0:00:07]}  g5 {[%clk 0:00:15]} 57. Ra6 {[%clk 0:00:06]}  Re3 {[%clk 0:00:12]} 58. Rb6 {[%clk 0:00:06]}  Re4 {[%clk 0:00:11]} 59. Kg3 {[%clk 0:00:06]}  Rh4 {[%clk 0:00:11]} 60. Ra6 {[%clk 0:00:06]}  Rh6 {[%clk 0:00:09]} 61. h3 {[%clk 0:00:03]}  Rxa6 {[%clk 0:00:09]} 0-1

[Event "December 12 Early 2023"]
[Site "https://www.chess.com"]
[Date "2023.12.12"]
[Round "10"]
[White "Manukian, Artak"]
[Black "Makhnev, Denis"]
[Result "0-1"]
[Board "32"]
[TimeControl "180+1"]
[WhiteFideId "13301373"]
[BlackFideId "13707647"]
[WhiteElo "2608"]
[BlackElo "2703"]
[WhiteTeam "ARM"]
[BlackTeam "KAZ"]
[WhiteClock "0:00:09"]
[BlackClock "0:00:12"]

1. e4 {[%clk 0:02:57]}  c6 {[%clk 0:02:59]} 2. d4 {[%clk 0:02:54]}  d5 {[%clk 0:03:00]} 3. e5 {[%clk 0:02:55]}  Bf5 {[%clk 0:02:58]} 4. c4 {[%clk 0:02:55]}  e6 {[%clk 0:02:57]} 5. Nc3 {[%clk 0:02:53]}  Nd7 {[%clk 0:02:57]} 6. Nf3 {[%clk 0:02:52]}  Ne7 {[%clk 0:02:56]} 7. Nh4 {[%clk 0:02:51]}  Bg6 {[%clk 0:02:46]} 8. Bg5 {[%clk 0:02:49]}  Qb6 {[%clk 0:02:40]} 9. Qd2 {[%clk 0:02:46]}  Nf5 {[%clk 0:02:37]} 10. Nxf5 {[%clk 0:02:40]}  Bxf5 {[%clk 0:02:37]} 11. c5 {[%clk 0:02:36]}  Qc7 {[%clk 0:02:35]} 12. Bd3 {[%clk 0:02:34]}  Bxd3 {[%clk 0:02:34]} 13. Qxd3 {[%clk 0:02:35]}  b6 {[%clk 0:02:33]} 14. cxb6 {[%clk 0:02:31]}  axb6 {[%clk 0:02:31]} 15. O-O {[%clk 0:02:31]}  h6 {[%clk 0:02:31]} 16. Bh4 {[%clk 0:02:27]}  c5 {[%clk 0:02:28]} 17. Nb5 {[%clk 0:02:26]}  Qc6 {[%clk 0:02:27]} 18. a4 {[%clk 0:02:25]}  g5 {[%clk 0:01:47]} 19. Bg3 {[%clk 0:02:23]}  Be7 {[%clk 0:01:45]} 20. Rfc1 {[%clk 0:02:20]}  O-O {[%clk 0:01:35]} 21. h4 {[%clk 0:02:15]}  Rfc8 {[%clk 0:00:56]} 22. hxg5 {[%clk 0:02:10]}  hxg5 {[%clk 0:00:57]} 23. b3 {[%clk 0:02:05]}  Nf8 {[%clk 0:00:55]} 24. f4 {[%clk 0:01:57]}  Qd7 {[%clk 0:00:52]} 25. Qf3 {[%clk 0:01:36]}  cxd4 {[%clk 0:00:50]} 26. Bf2 {[%clk 0:01:27]}  gxf4 {[%clk 0:00:46]} 27. Qxf4 {[%clk 0:01:26]}  Ng6 {[%clk 0:00:45]} 28. Qxd4 {[%clk 0:01:19]}  Bc5 {[%clk 0:00:44]} 29. Qg4 {[%clk 0:01:19]}  Bxf2+ {[%clk 0:00:43]} 30. Kxf2 {[%clk 0:01:20]}  Rxc1 {[%clk 0:00:41]} 31. Rxc1 {[%clk 0:01:21]}  Rc8 {[%clk 0:00:41]} 32. Rxc8+ {[%clk 0:01:14]}  Qxc8 {[%clk 0:00:40]} 33. Qe2 {[%clk 0:01:11]}  Qc5+ {[%clk 0:00:38]} 34. Kg3 {[%clk 0:01:07]}  d4 {[%clk 0:00:36]} 35. Qe4 {[%clk 0:01:03]}  d3 {[%clk 0:00:23]} 36. Qxd3 {[%clk 0:01:00]}  Qxe5+ {[%clk 0:00:23]} 37. Kf2 {[%clk 0:01:00]}  Nf4 {[%clk 0:00:19]} 38. Qf3 {[%clk 0:00:37]}  f5 {[%clk 0:00:18]} 39. Nc3 {[%clk 0:00:26]}  Qd4+ {[%clk 0:00:16]} 40. Kg3 {[%clk 0:00:25]}  Nd3 {[%clk 0:00:14]} 41. Ne2 {[%clk 0:00:23]}  Qe5+ {[%clk 0:00:14]} 42. Kh3 {[%clk 0:00:22]}  Qxe2 {[%clk 0:00:14]} 43. Qa8+ {[%clk 0:00:17]}  Kg7 {[%clk 0:00:14]} 44. Qb7+ {[%clk 0:00:17]}  Kf6 {[%clk 0:00:14]} 45. Qxb6 {[%clk 0:00:17]}  Nf4+ {[%clk 0:00:13]} 46. Kg3 {[%clk 0:00:16]}  Ng6 {[%clk 0:00:10]} 47. Qd4+ {[%clk 0:00:15]}  Qe5+ {[%clk 0:00:07]} 48. Qxe5+ {[%clk 0:00:15]}  Kxe5 {[%clk 0:00:08]} 49. a5 {[%clk 0:00:15]}  Ne7 {[%clk 0:00:08]} 50. a6 {[%clk 0:00:15]}  Nc6 {[%clk 0:00:08]} 51. b4 {[%clk 0:00:16]}  Na7 {[%clk 0:00:08]} 52. Kf3 {[%clk 0:00:15]}  f4 {[%clk 0:00:08]} 53. g4 {[%clk 0:00:13]}  fxg3 {[%clk 0:00:07]} 54. Kxg3 {[%clk 0:00:12]}  Kd4 {[%clk 0:00:08]} 55. Kf2 {[%clk 0:00:12]}  e5 {[%clk 0:00:09]} 56. Ke2 {[%clk 0:00:12]}  e4 {[%clk 0:00:09]} 57. Ke1 {[%clk 0:00:13]}  e3 {[%clk 0:00:09]} 58. Ke2 {[%clk 0:00:13]}  Ke4 {[%clk 0:00:09]} 59. Ke1 {[%clk 0:00:11]}  Kd3 {[%clk 0:00:10]} 60. Kd1 {[%clk 0:00:11]}  e2+ {[%clk 0:00:09]} 61. Ke1 {[%clk 0:00:12]}  Ke3 {[%clk 0:00:10]} 62. b5 {[%clk 0:00:12]}  Nxb5 {[%clk 0:00:11]} 63. a7 {[%clk 0:00:12]}  Nd4 {[%clk 0:00:11]} 64. a8=Q {[%clk 0:00:09]}  Nc2# {[%clk 0:00:12]} 0-1

[Event "December 12 Early 2023"]
[Site "https://www.chess.com"]
[Date "2023.12.12"]
[Round "10"]
[White "Zeneli, Klendi"]
[Black "Yaran, Siar"]
[Result "0-1"]
[Board "34"]
[TimeControl "180+1"]
[WhiteFideId "4706609"]
[BlackFideId "6323006"]
[WhiteElo "2407"]
[BlackElo "2691"]
[WhiteTeam "ALB"]
[BlackTeam "TUR"]
[WhiteClock "0:01:03"]
[BlackClock "0:01:09"]

1. e4 {[%clk 0:02:59]}  e5 {[%clk 0:02:56]} 2. Nf3 {[%clk 0:02:59]}  Nc6 {[%clk 0:02:56]} 3. Bc4 {[%clk 0:02:59]}  Bc5 {[%clk 0:02:56]} 4. c3 {[%clk 0:02:58]}  Nf6 {[%clk 0:02:56]} 5. d3 {[%clk 0:02:58]}  a6 {[%clk 0:02:55]} 6. O-O {[%clk 0:02:58]}  O-O {[%clk 0:02:52]} 7. a4 {[%clk 0:02:58]}  Re8 {[%clk 0:02:51]} 8. h3 {[%clk 0:02:58]}  h6 {[%clk 0:02:51]} 9. Re1 {[%clk 0:02:58]}  Bf8 {[%clk 0:02:50]} 10. Nbd2 {[%clk 0:02:57]}  d6 {[%clk 0:02:50]} 11. Nf1 {[%clk 0:02:57]}  Be6 {[%clk 0:02:49]} 12. Ng3 {[%clk 0:02:56]}  g6 {[%clk 0:02:48]} 13. Bxe6 {[%clk 0:02:55]}  Rxe6 {[%clk 0:02:47]} 14. b4 {[%clk 0:02:55]}  d5 {[%clk 0:02:44]} 15. Bb2 {[%clk 0:02:45]}  dxe4 {[%clk 0:02:27]} 16. dxe4 {[%clk 0:02:46]}  Rd6 {[%clk 0:02:27]} 17. Qc2 {[%clk 0:02:44]}  b5 {[%clk 0:02:25]} 18. Qb3 {[%clk 0:02:35]}  Rb8 {[%clk 0:02:18]} 19. axb5 {[%clk 0:02:34]}  axb5 {[%clk 0:02:19]} 20. Bc1 {[%clk 0:02:23]}  Qd7 {[%clk 0:02:07]} 21. Be3 {[%clk 0:02:22]}  Rd3 {[%clk 0:02:04]} 22. Rad1 {[%clk 0:02:18]}  Rd8 {[%clk 0:01:55]} 23. Rxd3 {[%clk 0:02:04]}  Qxd3 {[%clk 0:01:56]} 24. Nd2 {[%clk 0:02:03]}  Kg7 {[%clk 0:01:31]} 25. Qa2 {[%clk 0:01:57]}  Qxc3 {[%clk 0:01:26]} 26. Qa6 {[%clk 0:01:53]}  Nxb4 {[%clk 0:01:19]} 27. Qxb5 {[%clk 0:01:51]}  Nc2 {[%clk 0:01:20]} 28. Rc1 {[%clk 0:01:21]}  Rxd2 {[%clk 0:01:08]} 29. Bxd2 {[%clk 0:01:22]}  Qxd2 {[%clk 0:01:09]} 30. Qb2 {[%clk 0:01:22]}  Ba3 {[%clk 0:01:10]} 31. Qxc2 {[%clk 0:01:03]}  Qxc1+ {[%clk 0:01:09]} 0-1

[Event "December 12 Early 2023"]
[Site "https://www.chess.com"]
[Date "2023.12.12"]
[Round "10"]
[White "Renjith, Sravan"]
[Black "Dragnev, Valentin"]
[Result "0-1"]
[Board "40"]
[TimeControl "180+1"]
[WhiteFideId "4306783"]
[BlackFideId "1634852"]
[WhiteElo "2640"]
[BlackElo "2788"]
[WhiteTeam "NZL"]
[BlackTeam "AUT"]
[WhiteClock "0:00:03"]
[BlackClock "0:00:20"]

1. e4 {[%clk 0:03:00]}  d5 {[%clk 0:02:58]} 2. exd5 {[%clk 0:03:00]}  Qxd5 {[%clk 0:02:59]} 3. Nc3 {[%clk 0:03:00]}  Qd8 {[%clk 0:02:58]} 4. d4 {[%clk 0:03:01]}  Nf6 {[%clk 0:02:58]} 5. Nf3 {[%clk 0:03:01]}  g6 {[%clk 0:02:57]} 6. Bf4 {[%clk 0:02:58]}  Bg7 {[%clk 0:02:56]} 7. Qd2 {[%clk 0:02:58]}  c6 {[%clk 0:02:56]} 8. O-O-O {[%clk 0:02:58]}  Bg4 {[%clk 0:02:55]} 9. Be2 {[%clk 0:02:54]}  Nbd7 {[%clk 0:02:55]} 10. Ne5 {[%clk 0:02:51]}  Be6 {[%clk 0:02:55]} 11. Bh6 {[%clk 0:02:49]}  Bxh6 {[%clk 0:02:50]} 12. Qxh6 {[%clk 0:02:50]}  Qa5 {[%clk 0:02:46]} 13. Nxd7 {[%clk 0:02:47]}  Nxd7 {[%clk 0:02:39]} 14. a3 {[%clk 0:02:37]}  Nf6 {[%clk 0:02:30]} 15. Qe3 {[%clk 0:02:35]}  O-O-O {[%clk 0:02:26]} 16. Bf3 {[%clk 0:02:25]}  Rhe8 {[%clk 0:02:24]} 17. Qe5 {[%clk 0:02:22]}  Qxe5 {[%clk 0:02:12]} 18. dxe5 {[%clk 0:02:23]}  Nd7 {[%clk 0:02:13]} 19. Rhe1 {[%clk 0:02:22]}  Nb6 {[%clk 0:02:14]} 20. b3 {[%clk 0:02:18]}  Rxd1+ {[%clk 0:02:09]} 21. Bxd1 {[%clk 0:02:17]}  Bd5 {[%clk 0:02:02]} 22. f3 {[%clk 0:02:13]}  Kc7 {[%clk 0:02:01]} 23. a4 {[%clk 0:02:07]}  a5 {[%clk 0:02:00]} 24. g3 {[%clk 0:02:07]}  h5 {[%clk 0:02:00]} 25. f4 {[%clk 0:02:07]}  h4 {[%clk 0:01:57]} 26. Nxd5+ {[%clk 0:02:07]}  Nxd5 {[%clk 0:01:57]} 27. Bf3 {[%clk 0:02:07]}  Rh8 {[%clk 0:01:47]} 28. Bxd5 {[%clk 0:01:43]}  cxd5 {[%clk 0:01:48]} 29. e6 {[%clk 0:01:36]}  f6 {[%clk 0:01:45]} 30. g4 {[%clk 0:01:34]}  Kd6 {[%clk 0:01:40]} 31. h3 {[%clk 0:01:32]}  Rc8 {[%clk 0:01:34]} 32. Kd2 {[%clk 0:01:28]}  d4 {[%clk 0:01:34]} 33. Kd3 {[%clk 0:01:10]}  Kd5 {[%clk 0:01:25]} 34. g5 {[%clk 0:01:09]}  Rc3+ {[%clk 0:01:25]} 35. Kd2 {[%clk 0:01:09]}  fxg5 {[%clk 0:01:23]} 36. Re5+ {[%clk 0:01:09]}  Kd6 {[%clk 0:01:23]} 37. Rxg5 {[%clk 0:01:08]}  Rxh3 {[%clk 0:01:24]} 38. Rxg6 {[%clk 0:01:05]}  Rf3 {[%clk 0:01:14]} 39. Rh6 {[%clk 0:01:04]}  Rxf4 {[%clk 0:01:14]} 40. Kd3 {[%clk 0:01:05]}  b6 {[%clk 0:01:12]} 41. Kc4 {[%clk 0:01:02]}  Re4 {[%clk 0:01:02]} 42. Kd3 {[%clk 0:00:58]}  Kd5 {[%clk 0:00:48]} 43. Rh5+ {[%clk 0:00:21]}  Re5 {[%clk 0:00:48]} 44. Rxh4 {[%clk 0:00:15]}  Re3+ {[%clk 0:00:48]} 45. Kd2 {[%clk 0:00:16]}  Rxe6 {[%clk 0:00:49]} 46. Rh5+ {[%clk 0:00:17]}  Re5 {[%clk 0:00:49]} 47. Rh6 {[%clk 0:00:17]}  Kc5 {[%clk 0:00:46]} 48. Rh8 {[%clk 0:00:17]}  Rg5 {[%clk 0:00:37]} 49. Rc8+ {[%clk 0:00:17]}  Kd5 {[%clk 0:00:36]} 50. Rd8+ {[%clk 0:00:18]}  Ke4 {[%clk 0:00:35]} 51. Rd7 {[%clk 0:00:14]}  e5 {[%clk 0:00:31]} 52. Rd6 {[%clk 0:00:15]}  Rg2+ {[%clk 0:00:31]} 53. Kc1 {[%clk 0:00:15]}  Ke3 {[%clk 0:00:26]} 54. Rxb6 {[%clk 0:00:15]}  e4 {[%clk 0:00:27]} 55. b4 {[%clk 0:00:14]}  axb4 {[%clk 0:00:19]} 56. Rxb4 {[%clk 0:00:14]}  d3 {[%clk 0:00:19]} 57. cxd3 {[%clk 0:00:13]}  exd3 {[%clk 0:00:19]} 58. Rb8 {[%clk 0:00:06]}  Rg1+ {[%clk 0:00:20]} 59. Kb2 {[%clk 0:00:06]}  d2 {[%clk 0:00:21]} 60. Re8+ {[%clk 0:00:03]}  Kf4 {[%clk 0:00:20]} 0-1

[Event "December 12 Early 2023"]
[Site "https://www.chess.com"]
[Date "2023.12.12"]
[Round "10"]
[White "Wagh Suyog"]
[Black "Antunez Soler, Luis"]
[Result "1-0"]
[Board "41"]
[TimeControl "180+1"]
[WhiteFideId "25071688"]
[BlackFideId "3513335"]
[WhiteElo "2787"]
[BlackElo "2631"]
[WhiteTeam "IND"]
[BlackTeam "CUB"]
[WhiteClock "0:00:08"]
[BlackClock "0:00:00"]

1. e4 {[%clk 0:03:00]}  e6 {[%clk 0:03:00]} 2. d4 {[%clk 0:03:00]}  d5 {[%clk 0:03:00]} 3. Nd2 {[%clk 0:03:01]}  Be7 {[%clk 0:03:00]} 4. Ngf3 {[%clk 0:02:57]}  Nf6 {[%clk 0:02:59]} 5. e5 {[%clk 0:02:57]}  Nfd7 {[%clk 0:03:00]} 6. Bd3 {[%clk 0:02:57]}  c5 {[%clk 0:03:01]} 7. c3 {[%clk 0:02:57]}  Nc6 {[%clk 0:03:02]} 8. O-O {[%clk 0:02:57]}  a5 {[%clk 0:03:02]} 9. Re1 {[%clk 0:02:53]}  cxd4 {[%clk 0:03:02]} 10. Nb3 {[%clk 0:02:46]}  dxc3 {[%clk 0:02:57]} 11. bxc3 {[%clk 0:02:46]}  a4 {[%clk 0:02:38]} 12. Nbd4 {[%clk 0:02:45]}  Nc5 {[%clk 0:02:20]} 13. Bc2 {[%clk 0:02:42]}  Bd7 {[%clk 0:02:19]} 14. Rb1 {[%clk 0:02:40]}  O-O {[%clk 0:02:17]} 15. h4 {[%clk 0:02:25]}  h6 {[%clk 0:02:10]} 16. h5 {[%clk 0:02:07]}  Rc8 {[%clk 0:02:03]} 17. Ba3 {[%clk 0:02:01]}  Ne4 {[%clk 0:01:45]} 18. Bxe7 {[%clk 0:02:01]}  Nxe7 {[%clk 0:01:43]} 19. Bxe4 {[%clk 0:01:54]}  dxe4 {[%clk 0:01:44]} 20. Rxe4 {[%clk 0:01:55]}  Nd5 {[%clk 0:01:41]} 21. Ne2 {[%clk 0:01:47]}  Qc7 {[%clk 0:01:24]} 22. c4 {[%clk 0:01:38]}  Ne7 {[%clk 0:01:23]} 23. Rg4 {[%clk 0:01:24]}  Bc6 {[%clk 0:01:13]} 24. Ned4 {[%clk 0:01:21]}  Rfd8 {[%clk 0:01:08]} 25. Qc1 {[%clk 0:01:19]}  Nf5 {[%clk 0:01:02]} 26. Nxc6 {[%clk 0:00:55]}  Qxc6 {[%clk 0:00:58]} 27. Qb2 {[%clk 0:00:53]}  Rd7 {[%clk 0:00:44]} 28. c5 {[%clk 0:00:52]}  Rcd8 {[%clk 0:00:36]} 29. Qc2 {[%clk 0:00:51]}  Rd5 {[%clk 0:00:31]} 30. Qxa4 {[%clk 0:00:43]}  Qxc5 {[%clk 0:00:29]} 31. Rc4 {[%clk 0:00:39]}  Qe7 {[%clk 0:00:25]} 32. Qc2 {[%clk 0:00:36]}  Qa3 {[%clk 0:00:18]} 33. Rc3 {[%clk 0:00:33]}  Qa6 {[%clk 0:00:17]} 34. Rcb3 {[%clk 0:00:31]}  Nd4 {[%clk 0:00:13]} 35. Nxd4 {[%clk 0:00:30]}  Rxd4 {[%clk 0:00:14]} 36. Rxb7 {[%clk 0:00:26]}  Rd2 {[%clk 0:00:13]} 37. Qe4 {[%clk 0:00:25]}  Qxa2 {[%clk 0:00:10]} 38. Qf3 {[%clk 0:00:24]}  Rf8 {[%clk 0:00:06]} 39. Rc1 {[%clk 0:00:21]}  Qd5 {[%clk 0:00:05]} 40. Rxf7 {[%clk 0:00:08]}  Rxf7 {[%clk 0:00:02]} 41. Rc8+ {[%clk 0:00:09]}  Kh7 {[%clk 0:00:03]} 42. Qxf7 {[%clk 0:00:08]}  Rd1+ {[%clk 0:00:02]} 43. Kh2 {[%clk 0:00:09]}  Rh1+ {[%clk 0:00:02]} 44. Kxh1 {[%clk 0:00:08]}  Qd1+ {[%clk 0:00:00]} 45. Kh2 {[%clk 0:00:08]} 1-0

[Event "December 12 Early 2023"]
[Site "https://www.chess.com"]
[Date "2023.12.12"]
[Round "10"]
[White "Borgaonkar Akshay"]
[Black "Korchmar, Vasiliy"]
[Result "1-0"]
[Board "42"]
[TimeControl "180+1"]
[WhiteFideId "25639110"]
[BlackFideId "24131750"]
[WhiteElo "2630"]
[BlackElo "2776"]
[WhiteTeam "IND"]
[BlackTeam "RUS"]
[WhiteClock "0:02:01"]
[BlackClock "0:01:06"]

1. d4 {[%clk 0:03:00]}  Nf6 {[%clk 0:02:59]} 2. Bf4 {[%clk 0:03:00]}  d5 {[%clk 0:02:59]} 3. Nc3 {[%clk 0:02:59]}  a6 {[%clk 0:02:59]} 4. e3 {[%clk 0:02:58]}  b5 {[%clk 0:02:59]} 5. Nf3 {[%clk 0:02:53]}  e6 {[%clk 0:03:00]} 6. Ne5 {[%clk 0:02:54]}  Bb7 {[%clk 0:02:59]} 7. g4 {[%clk 0:02:54]}  Bb4 {[%clk 0:02:59]} 8. f3 {[%clk 0:02:52]}  Nfd7 {[%clk 0:02:54]} 9. h4 {[%clk 0:02:49]}  Nxe5 {[%clk 0:02:48]} 10. Bxe5 {[%clk 0:02:50]}  f6 {[%clk 0:02:48]} 11. Bg3 {[%clk 0:02:46]}  Nd7 {[%clk 0:02:47]} 12. a3 {[%clk 0:02:45]}  Bxc3+ {[%clk 0:02:45]} 13. bxc3 {[%clk 0:02:46]}  c6 {[%clk 0:02:45]} 14. Bd6 {[%clk 0:02:38]}  Nb6 {[%clk 0:02:35]} 15. Bf4 {[%clk 0:02:37]}  Na4 {[%clk 0:02:34]} 16. Qd2 {[%clk 0:02:36]}  Qa5 {[%clk 0:02:34]} 17. g5 {[%clk 0:02:20]}  Qxc3 {[%clk 0:02:32]} 18. Rg1 {[%clk 0:02:17]}  Qxa1+ {[%clk 0:02:31]} 19. Kf2 {[%clk 0:02:14]}  Qxa3 {[%clk 0:02:27]} 20. gxf6 {[%clk 0:02:13]}  gxf6 {[%clk 0:02:28]} 21. Rg7 {[%clk 0:02:13]}  Bc8 {[%clk 0:02:13]} 22. Qa5 {[%clk 0:02:11]}  Bd7 {[%clk 0:01:46]} 23. Rxd7 {[%clk 0:02:07]}  Kxd7 {[%clk 0:01:26]} 24. Qc7+ {[%clk 0:02:07]}  Ke8 {[%clk 0:01:26]} 25. Bd6 {[%clk 0:02:08]}  Ra7 {[%clk 0:01:06]} 26. Qxc6+ {[%clk 0:02:01]} 1-0

[Event "December 12 Early 2023"]
[Site "https://www.chess.com"]
[Date "2023.12.12"]
[Round "10"]
[White "Vestby-Ellingsen, Mads"]
[Black "Gan-Erdene, Sugar"]
[Result "0-1"]
[Board "45"]
[TimeControl "180+1"]
[WhiteFideId "1520857"]
[BlackFideId "4902980"]
[WhiteElo "2599"]
[BlackElo "2742"]
[WhiteTeam "NOR"]
[BlackTeam "MGL"]
[WhiteClock "0:00:01"]
[BlackClock "0:01:21"]

1. d4 {[%clk 0:03:00]}  Nf6 {[%clk 0:02:59]} 2. Bg5 {[%clk 0:03:00]}  g6 {[%clk 0:02:59]} 3. Bxf6 {[%clk 0:03:00]}  exf6 {[%clk 0:03:00]} 4. e3 {[%clk 0:03:01]}  Bg7 {[%clk 0:03:00]} 5. g3 {[%clk 0:03:01]}  O-O {[%clk 0:03:00]} 6. Bg2 {[%clk 0:03:01]}  f5 {[%clk 0:03:00]} 7. Ne2 {[%clk 0:03:01]}  d6 {[%clk 0:03:00]} 8. c4 {[%clk 0:03:01]}  Nd7 {[%clk 0:03:01]} 9. Nbc3 {[%clk 0:03:01]}  h5 {[%clk 0:03:01]} 10. Qd3 {[%clk 0:03:00]}  Nf6 {[%clk 0:03:01]} 11. O-O {[%clk 0:03:00]}  h4 {[%clk 0:03:01]} 12. b4 {[%clk 0:02:56]}  Re8 {[%clk 0:03:01]} 13. b5 {[%clk 0:02:54]}  Ng4 {[%clk 0:03:01]} 14. Bf3 {[%clk 0:02:51]}  Nh6 {[%clk 0:02:55]} 15. a4 {[%clk 0:02:46]}  Rb8 {[%clk 0:02:49]} 16. a5 {[%clk 0:02:44]}  Bd7 {[%clk 0:02:50]} 17. a6 {[%clk 0:02:42]}  b6 {[%clk 0:02:49]} 18. Rad1 {[%clk 0:02:27]}  Qg5 {[%clk 0:02:38]} 19. Nf4 {[%clk 0:02:08]}  Ng4 {[%clk 0:02:37]} 20. Kg2 {[%clk 0:02:04]}  Qh6 {[%clk 0:02:35]} 21. Ncd5 {[%clk 0:01:49]}  Rbc8 {[%clk 0:02:34]} 22. Rh1 {[%clk 0:01:46]}  g5 {[%clk 0:02:30]} 23. Ne2 {[%clk 0:01:41]}  Nf6 {[%clk 0:02:27]} 24. Nxf6+ {[%clk 0:01:38]}  Bxf6 {[%clk 0:02:27]} 25. Nc3 {[%clk 0:01:37]}  Kg7 {[%clk 0:02:24]} 26. Bb7 {[%clk 0:01:32]}  f4 {[%clk 0:02:17]} 27. Nd5 {[%clk 0:01:02]}  f3+ {[%clk 0:01:56]} 28. Kxf3 {[%clk 0:00:39]}  Qh5+ {[%clk 0:01:50]} 29. Kg2 {[%clk 0:00:39]}  Bd8 {[%clk 0:01:35]} 30. Bxc8 {[%clk 0:00:28]}  h3+ {[%clk 0:01:30]} 31. Kg1 {[%clk 0:00:25]}  Qf3 {[%clk 0:01:26]} 32. Qf1 {[%clk 0:00:21]}  Bxc8 {[%clk 0:01:25]} 33. Nb4 {[%clk 0:00:14]}  Bf5 {[%clk 0:01:22]} 34. Nc2 {[%clk 0:00:01]}  Be4 {[%clk 0:01:21]} 35. Ne1 {[%clk 0:00:01]}  Qxh1# {[%clk 0:01:21]} 0-1